Cogmind - Beta 11.1 @@@ ROGUE MODE // 2022.05.01 @ 15:19:59 // Winter2019/RPGLIKE Player: Kiks Result: Destroyed by S-10 Pest with Light Assault Rifle Performance ------------- Evolutions (0) 0 Regions Visited (2) 400 Robots Destroyed (24) 120 Value Destroyed (456) 456 Prototype IDs (0) 0 Alien Tech Used (0) 0 Bonus (0) 0 TOTAL SCORE: 976 Bonus ------- None Cogmind --------- Core Integrity 0/600 Matter 191/300 Energy 160/160 System Corruption 0% Temperature Warning (322) Movement Walking (120) Location -10/Mines Parts ------- > --- POWER (1) -------- Light Nuclear Core > --- PROPULSION (2) --- Flexi-carbon Leg Flexi-carbon Leg > --- UTILITY (2) ------ Improved Terrain Scanner Terrain Scan Processor > --- WEAPON (2) ------- Light Cannon Bore Cannon > --- INVENTORY (3) ---- Aluminum Leg Peak State ------------ > --- POWER ------------ Light Nuclear Core > --- PROPULSION ------- Flexi-carbon Leg Flexi-carbon Leg > --- UTILITY ---------- Improved Terrain Scanner Terrain Scan Processor > --- WEAPON ----------- Light Cannon Bore Cannon > --- INVENTORY -------- Aluminum Leg [Rating: 24] Favorites ----------- Power Light Ion Engine Engine Light Ion Engine Power Core Light Nuclear Core Propulsion Aluminum Leg Leg Aluminum Leg Utility Terrain Scan Processor Device Improved Terrain Scanner Processor Terrain Scan Processor Weapon Light Cannon Energy Gun Medium Laser Ballistic Gun Light Assault Rifle Ballistic Cannon Light Cannon Build | -11 -10 -10 ------- Run | Scr Mat Min Slots Evolved 3 | 3 . . Power . | . . . Propulsion 1 | 1 . . Utility 1 | 1 . . Weapon 1 | 1 . . Parts Attached 15 | 5 4 6 Power 2 | 1 . 1 Engine 1 | 1 . . Core 1 | . . 1 Reactor . | . . . Propulsion 5 | 2 1 2 Treads . | . . . Leg 5 | 2 1 2 Wheel . | . . . Hover . | . . . Flight . | . . . Utility 2 | . . 2 Device 1 | . . 1 Storage . | . . . Processor 1 | . . 1 Hackware . | . . . Protection . | . . . Artifact . | . . . Weapon 6 | 2 3 1 Energy Gun 1 | 1 . . Energy Cannon . | . . . Ballistic Gun 2 | 1 1 . Ballistic Cannon 3 | . 2 1 Launcher . | . . . Special Weapon . | . . . Impact Weapon . | . . . Slashing Weapon . | . . . Piercing Weapon . | . . . Special Melee Weapon . | . . . Unidentified Prototypes . | . . . Parts Lost . | . . . Power . | . . . Propulsion . | . . . Utility . | . . . Weapon . | . . . Highest Loss Streak . | . . . To Critical Strikes . | . . . Average Slot Usage (%) 74 | . 71 78 Engine 8 | . 14 1 Core 5 | . . 11 Leg 27 | . 28 27 Device 1 | . . 3 Processor 1 | . . 4 Ballistic Gun 11 | . 14 8 Ballistic Cannon 16 | . 12 19 Naked Turns . | . . . Heaviest Build 18 | 6 7 18 Greatest Support 40 | 20 20 40 Greatest Overweight (x) . | . . . Average Overweight (x) . | . . . Largest Inventory Capacity 3 | 3 3 3 Average Capacity 2 | 2 3 3 Most Carried 1 | . . 1 Average Carried . | . . . Final Capacity 3 | 3 3 3 Final Carried 1 | . . 1 Class Distribution -------------------- 81% | Mutant 18% | Scavenger-Mutant Dominant Class ---------------- Mutant | -10/Materials Mutant | -10/Mines Resources | -11 -10 -10 ----------- Run | Scr Mat Min Matter Collected 878 | 226 197 455 Remotely . | . . . Salvage Created 510 | . 266 244 Parts 39 | . 22 17 Haulers Intercepted 2 | . 2 . Recyclers Shooed . | . . . Parts Field Recycled . | . . . Retrieved Matter . | . . . Parts Self-Destructed . | . . . Prevented . | . . . Kills | -11 -10 -10 ------- Run | Scr Mat Min Combat Hostiles Destroyed 27 | . 8 19 Guns 6 | . 2 4 Cannons 21 | . 6 15 Classes Destroyed 8 | . 5 3 Worker 1 | . . 1 Builder 1 | . 1 . Tunneler 1 | . . 1 Hauler 2 | . 2 . Watcher 2 | . 2 . Swarmer 10 | . 3 7 Grunt 7 | . 5 2 Assembled 10 | . . 10 Best Kill Streak 6 | . 6 5 Combat Bots Only 5 | . 5 5 Max Kills in Single Turn 2 | . 2 1 Gunslinging . | . . . Exploded . | . . . Melee . | . . . Uniques/NPCs Destroyed . | . . . Combat | -11 -10 -10 -------- Run | Scr Mat Min Damage Taken 1130 | . 288 842 Core 902 | . 227 675 Absorbed by Shields . | . . . Redirected to Core 736 | . 199 537 Core Remaining (%) 100 | 100 . . Volleys Fired 107 | . 46 61 Largest 2 | . 2 2 Hottest 92 | . 70 92 Shots Fired 208 | . 92 116 Gun 87 | . 49 38 Cannon 121 | . 43 78 Launcher . | . . . Special . | . . . Kinetic 205 | . 89 116 Thermal 3 | . 3 . Explosive . | . . . Electromagnetic . | . . . Robot Hit Streak 10 | . 7 10 Robot Miss Streak 7 | . 6 7 Penetration Max . | . . . Secondary Targets . | . . . Shots Hit Robots 103 | . 45 58 Core Hits 56 | . 23 33 Critical Kills 3 | . 1 2 Critical Parts Destroyed 3 | . . 3 Critical Strikes 9 | . 3 6 Destroy 6 | . 1 5 Blast 3 | . 2 1 Melee Attacks . | . . . Impact . | . . . Slashing . | . . . Piercing . | . . . Sneak Attacks . | . . . Combat Hostiles . | . . . Follow-up Attacks . | . . . Damage Inflicted 1501 | . 613 888 Guns 379 | . 199 180 Cannons 1122 | . 414 708 Explosions . | . . . Melee . | . . . Ramming . | . . . Kinetic 1488 | . 600 888 Thermal 13 | . 13 . Explosive . | . . . Electromagnetic . | . . . Impact . | . . . Slashing . | . . . Piercing . | . . . Highest Corruption . | . . . Average Corruption . | . . . Corruption Purged . | . . . Corruption Blocked . | . . . Overload Shots . | . . . Overflow Damage 6 | . . 6 Projectiles 6 | . . 6 Explosions . | . . . Melee . | . . . Knockbacks 11 | . 2 9 Impact . | . . . Kinetic 11 | . 2 9 Secondary . | . . . Self-Inflicted Damage . | . . . Shots . | . . . Rammed . | . . . Targets Rammed . | . . . Kicked . | . . . Crushed . | . . . Highest Temperature 322 | . 76 322 Average Temperature 47 | . 21 62 Received Heat Transfer 215 | . 129 86 Effects 3 | . . 3 Energy Bleed 1 | . . 1 Interference 2 | . . 2 Siege Activations . | . . . Robots Corrupted . | . . . Combat Hostiles . | . . . Parts Fried . | . . . Impact Corruptions . | . . . Robots Melted . | . . . Combat Hostiles . | . . . Parts Melted . | . . . Heat Transferred 37 | . 37 . Parts Sabotaged . | . . . Parts Stolen . | . . . Parts Stripped . | . . . Power Chain Reactions . | . . . Missiles Intercepted . | . . . Alert | -11 -10 -10 ------- Run | Scr Mat Min Peak Influence 253 | . 170 253 Initial 66 | . . 66 Average 118 | . 95 153 Maximum Alert Level 1 | . . 1 Low Security (%) 79 | 100 100 56 Level 1 20 | . . 43 Level 2 . | . . . Level 3 . | . . . Level 4 . | . . . Level 5 . | . . . High Security . | . . . Max Security . | . . . Squads Dispatched 2 | . 2 . Investigation . | . . . Extermination . | . . . Reinforcement 2 | . 2 . Assault . | . . . Garrison . | . . . Intercept . | . . . Searches Triggered . | . . . Construction Impeded . | . . . Haulers Reinforced . | . . . Active Scanning Responses . | . . . Cargo Convoy Interrupts . | . . . Stealth | -11 -10 -10 --------- Run | Scr Mat Min Distress Signals 1 | . 1 . Communications Jammed . | . . . Distress Signals . | . . . Times Spotted 49 | . 17 32 Peak Tracking Total 10 | . 4 10 Tactical Retreats 5 | . . 5 Traps | -11 -10 -10 ------- Run | Scr Mat Min Traps Triggered 2 | . 2 . Indirectly . | . . . Trap Hack Attempts . | . . . Triggered . | . . . Disarmed . | . . . Reprogrammed . | . . . Reused . | . . . Traps Extracted . | . . . Installed . | . . . Triggered . | . . . Machines | -11 -10 -10 ---------- Run | Scr Mat Min Machines Disabled 3 | . . 3 Max in Single Turn 1 | . . 1 Machines Sabotaged . | . . . Garrisons Compromised . | . . . Overloaded Fab Kills . | . . . Hacking | -11 -10 -10 --------- Run | Scr Mat Min Machines Accessed 5 | . 4 1 Terminals 5 | . 4 1 Fabricators . | . . . Repair Stations . | . . . Recycling Units . | . . . Scanalyzers . | . . . Garrison Access . | . . . Total Hacks 9 | . 8 1 Successful 4 | . 3 1 Failed 5 | . 5 . Catastrophic . | . . . Database Lockouts . | . . . Manual 9 | . 8 1 Terminals 9 | . 8 1 Fabricators . | . . . Repair Stations . | . . . Recycling Units . | . . . Scanalyzers . | . . . Garrison Access . | . . . Terminal Hacks 1 | . 1 . Alert Level 1 | . 1 . Fabricator Hacks . | . . . Repair Station Hacks . | . . . Recycling Unit Hacks . | . . . Scanalyzer . | . . . Garrison Access Hacks . | . . . Unauthorized Hacks 3 | . 2 1 Terminals 3 | . 2 1 Botnet 3 | . 2 1 Fabricators . | . . . Repair Stations . | . . . Recycling Units . | . . . Scanalyzers . | . . . Garrison Access . | . . . Data Cores Recovered . | . . . Used . | . . . Hacking Detections 2 | . 2 . Full Trace Events . | . . . Feedback Events . | . . . Feedback Blocked . | . . . Robot Schematics Acquired . | . . . Robots Built . | . . . Authchips . | . . . Time . | . . . Total Robot Build Rating . | . . . Part Schematics Acquired . | . . . Parts Built . | . . . Authchips . | . . . Time . | . . . Total Part Build Rating . | . . . Parts Repaired . | . . . Time . | . . . Parts Recycled . | . . . Recycled Matter . | . . . Retrieved Matter . | . . . Retrieved Components . | . . . Parts Scanalyzed . | . . . Part Schematics Acquired . | . . . Parts Damaged . | . . . Bothacking | -11 -10 -10 ------------ Run | Scr Mat Min Used RIF Installer . | . . . Robots Hacked . | . . . Non-combat . | . . . Combat . | . . . Robot Hacks Applied . | . . . Relay Couplers Released . | . . . Fabnet Peak Effective % . | . . . Robots Rewired . | . . . Allies Hacked . | . . . Hacks Repelled . | . . . Allies | -11 -10 -10 -------- Run | Scr Mat Min Total Allies . | . . . Largest Group . | . . . Highest-Rated Group . | . . . Highest-Rated Ally . | . . . Total Orders . | . . . Ally Attacks . | . . . Total Damage . | . . . Kills . | . . . Allies Corrupted . | . . . Allies Melted . | . . . Intel | -11 -10 -10 ------- Run | Scr Mat Min Robot Analysis Total . | . . . Derelict Logs Recovered 1 | . . 1 Drone Launches . | . . . Drone Recoveries . | . . . Exploration | -11 -10 -10 ------------- Run | Scr Mat Min Turns Passed 1270 | 41 641 588 Spaces Moved 736 | 33 395 308 Core 7 | 7 . . Treads . | . . . Legs 729 | 26 395 308 Wheels . | . . . Hover . | . . . Flight . | . . . Fastest Speed 50 | 50 120 120 Average Speed 119 | 105 120 120 Slowest Speed 120 | 120 120 120 Overloaded Moves . | . . . Propulsion Burnouts . | . . . Robots Hopped . | . . . Cave-ins Triggered . | . . . Exploration Rate (%) 43 | 3 69 57 Regions Visited 2 Branch Regions 1 Pre-discovered Areas . | . . . Known Exits Taken . | . . . Unknown Exits Taken 2 | 1 1 . Scrap Searched . | . . . Spaces Dug . | . . . Terrain Destroyed 6 | . . 6 Melee . | . . . Projectile 6 | . . 6 AOE . | . . . Terrain Rammed . | . . . Walls Destroyed . | . . . Machines Disabled . | . . . Actions | -11 -10 -10 --------- Run | Scr Mat Min Total 930 | 37 477 416 Wait 48 | . 19 29 Move 734 | 32 394 308 Hop . | . . . Pick Up . | . . . Fast Attach 14 | 5 4 5 Attach . | . . . Detach . | . . . Swap 1 | . . 1 Drop 4 | . 1 3 Fire 107 | . 46 61 Melee . | . . . Ram . | . . . Kick . | . . . Crush . | . . . Escape Stasis . | . . . Rewire . | . . . Trap . | . . . Miscellaneous 22 | . 13 9 Route ------- -11/Scrapyard -10/Materials (discovered 4 exits: [*Mat x3] / *Min) -10/Mines (discovered 1 exit: [*Mat]) History --------- Turn | Location | Event 2 | -11/Scrapyard | Upgraded with Propulsion slot (x1) 2 | -11/Scrapyard | Upgraded with Utility slot (x1) 2 | -11/Scrapyard | Upgraded with Weapon slot (x1) 12 | -11/Scrapyard | Discovered new exit (range 16) 42 | -11/Scrapyard | Entered Materials 284 | -10/Materials | Discovered new exit (range 16) 302 | -10/Materials | Build established: Mutant 407 | -10/Materials | Discovered new exit (range 11) 539 | -10/Materials | Discovered new exit (range 11) 563 | -10/Materials | Discovered new exit (range 16) 683 | -10/Materials | Entered Mines 685 | -10/Mines | Reached level 2 827 | -10/Mines | Discovered new exit (range 8) 896 | -10/Mines | Assembled infested the area 901 | -10/Mines | Assisted by a Guerilla fighting off Assembled 993 | -10/Mines | Core integrity fell below 50% 1245 | -10/Mines | Core integrity fell below 20% 1271 | -10/Mines | Destroyed by S-10 Pest with Light Assault Rifle Last Messages --------------- 01237_ K-01 Serf cleans the Core Extractor. 01243_ HV Slug penetrates Wall. 01246_ S-10 Pest suffers critical hit (Destroy). 01246_ S-10 Pest destroyed. 01249_ HV Slug penetrates S-10 Pest. 01249_ S-10 Pest suffers critical hit (Destroy). 01249_ Destroyed Lgt. Ion Engine. 01249_ S-10 Pest knocked back. 01255_ S-10 Pest destroyed. 01255_ HV Slug penetrates Core Extractor. 01255_ Core Extractor disabled. 01257_ Overheating: System interference. 01257_ Lgt. Cannon temporarily disabled. 01257_ Terrain Scan Processor temporarily disabled. 01261_ Overheating: Energy bleed (-30). 01267_ HV Slug penetrates Wall. 01268_ K-01 Serf collects debris. 01269_ HV Slug penetrates K-01 Serf. 01269_ HV Slug penetrates Core Extractor. 01269_ Core Extractor disabled. Map ----- +----------------------------------------------------+ | ### """" ## ##?## ! ##???????####! | | ??# """" ## #?### % ###?????????# | | ### """" ## #?## =%*#?????????# | | ### ### ##?# %=!#???#?????# | | ?# ##### ##?## #??#?????## | | ## ##?## ##?#?### #?#?#?????## | | ?## #?##?# ##??#?### ??????????? | | #####?##### ###????### #? ???????? | | ??#?#??##?## ##??#????## ?????????? | | ???#?#?###?# ##?#?????? ? ##???? | | ???##?###### ###???##? #???? | | ??????#?#??## ###### ????? | | ????????#?#### = ????? | | ??#?#?##?##?## * |%= ????? | | ?#???????##??# = !#### ! ????? | | ???###?#????## ## #????? # ?????? | | ??#??##??#??## ### #???##??????????? | | ?#??##?????#?# #?# #??#????? ?????? | | ????#???###??# ### #?#???????????? | | ?######??#?#?# #?## ? ? ????????? | | #?????#?#?#??# #?### ????? ????? | | ???#??#####??# #????####### #????????? | | ?#??????#??### #?????#?##???#????????? | | ????##???????# ####?#??#????#????????? | | ???#?#??#?#?## #?#?#????##? #????????? | | ???????#?##?##@ #?????????#? ?????????? | | ?#????????#??# #?#???#??#????????????? | | #?????##?????#%%;#???#????????????????? | | ????#????????;=s; #???? ?#????????????? | | #???#????#???#% ###???? ??? #????????? | | ????? ??? ??%k #?##??? ?????????????? | | #?#???"????? " #??### ???? ?????????? | | #??? ""???"" " "% ?????? ?????????????? | | ??????"? ??" """ #?#????? ?????????? | | ??????? ?? #???#????????????????? | | ??#??"???""" " " #????##??????????????? | | ?????????""" """ #?#??????????????????? | | ?????""??""???"? ##???#???????????????? | | ????? ?? ??????? #????????????????????? | | ??????? ????? ??#?#??????????????????? | | ?????????????????##???????????????????? | | ?????????????????#?#??????????????????? | | ??????????????????????????????????????? | | ??????????????????????????????????????? | | ??????????????????????????????????????? | | ??????????????????????????????????????? | | ??????????????????????????????????????? | | ??????????????????????????????????????? | | ??????????????????????????????????????? | | ??????????????????????????????????????? | +----------------------------------------------------+ Best States ------------- Heat Dissipation 25 Energy Generation 14 Energy Capacity 160 Matter Stores 300 Matter Capacity 300 Sight Range 16 Terrain Scan Range 16 Terrain Scan Density 85 Evasion (%) 55 Item Schematics ----------------- None Robot Schematics ------------------ None Fabricated ------------ Nothing Alien Tech Used ----------------- None Achievements -------------- None Challenges ------------ None RPGLIKE | -11 -10 -10 --------- Run | Scr Mat Min Levels Raised 1 | . . 1 XP Earned 5915 | 3000 1140 1775 XP Spent 4500 | 3000 . 1500 Upgrades 9 | 6 . 3 Propulsion Slot 1 | 1 . . Utility Slot 1 | 1 . . Weapon Slot 1 | 1 . . Inventory Capacity 3 | 3 . . Ranged Accuracy 3 | . . 3 Protomatter Created 130 | . 87 43 Integrity Restored 363 | . 234 129 Core 301 | . 172 129 Parts 62 | . 62 . Protomatter Decayed 41 | . 7 34 Game ------ Seed ModifiedMediumSystem Manual? 0 Play Time 00:14:15 Cumulative 112.7 hours Start 2022.05.01 @ 15:07:15 End 2022.05.01 @ 15:19:59 Sessions 1 Manual Loads 0 Difficulty Rogue Special Mode Winter2019/RPGLIKE Game No. 70 Rogue 31 Adventurer 5 Explorer 34 Win Type - Total 19 Types 10/0/4/4/1/0/0/0/0 Lore% 71 Gallery% 70 Achievement% 76 Wizard Run 0 Options --------- ASCII 0 Keyboard 0 Movement Mouse Keybinds 0 Fullscreen 1 Font 12/Terminus Map View 83x54 Tactical HUD 1 Map Filters NONE Filters NONE Steam 1 RUN: 6ad14197-bcce-4bdb-ab33-4e6863224830